Cogmind - Beta 13 X2 @@@ ROGUE MODE // 2024.01.05 @ 22:39:45 Player: Minty Result: Destroyed by G-47 Trooper with Particle Gun Performance ------------- Evolutions (2) 1000 Regions Visited (6) 1200 Robots Destroyed (37) 185 Value Destroyed (1185) 1185 Prototype IDs (2) 40 Alien Tech Used (0) 0 Bonus (965) 965 TOTAL SCORE: 4575 Bonus ------- High Alert Combat Kills 56 Follower Combat Kills 253 Entered Garrisons 200 Used RIF Installer 500 Friendly Fire -44 Cogmind --------- Core Integrity 0/550 Matter 203/300 Energy 72/280 System Corruption 28% Temperature Warm (104) Movement Flying (117) Ox1 Location -8/Materials Parts ------- > --- POWER (1) -------- Heavy Ion Engine > --- PROPULSION (2) --- Flight Unit Flight Unit > --- UTILITY (5) ------ Power Shielding Relay Coupler [Swarmer] (43) Relay Coupler [Duelist] (24) Relay Coupler [Heavy] (12) > --- WEAPON (3) ------- Heavy Particle Gun Great Maul > --- INVENTORY (5) ---- Relay Coupler [Swarmer] (29) Relay Coupler [Brawler] (26) Heavy Assault Rifle Peak State ------------ > --- POWER ------------ Heavy Ion Engine > --- PROPULSION ------- Improved Treads Improved Treads > --- UTILITY ---------- Heat Sink Power Shielding Relay Coupler [Swarmer] Relay Coupler [Duelist] Relay Coupler [Heavy] > --- WEAPON ----------- Field Laser Heavy Assault Rifle Great Maul > --- INVENTORY -------- Relay Coupler [Swarmer] Relay Coupler [Brawler] [Rating: 29] Favorites ----------- Power Heavy Ion Engine Engine Heavy Ion Engine Propulsion Aluminum Leg Treads Improved Treads Leg Aluminum Leg Flight Unit Flight Unit Utility Small Storage Unit Device Heat Sink Storage Small Storage Unit Hackware Relay Coupler [Swarmer] Protection Light Armor Plating Weapon Great Maul Energy Gun EM Pulse Gun Ballistic Gun Heavy Assault Rifle Special Weapon Mining Laser Impact Weapon Great Maul Slashing Weapon Katana Build | -11 -10 -10 -9 -8 -8 -8 ------- Run | Yrd Mat Min Mat Mat Gar Mat Slots Evolved 4 | . . . 2 2 . . Power . | . . . . . . . Propulsion . | . . . . . . . Utility 3 | . . . 2 1 . . Weapon 1 | . . . . 1 . . Parts Attached 46 | . 3 . 3 23 14 3 Power 5 | . . . 1 2 1 1 Engine 5 | . . . 1 2 1 1 Core . | . . . . . . . Reactor . | . . . . . . . Propulsion 13 | . . . . 11 2 . Treads 2 | . . . . 2 . . Leg 9 | . . . . 9 . . Wheel . | . . . . . . . Hover . | . . . . . . . Flight 2 | . . . . . 2 . Utility 11 | . 1 . 2 2 6 . Device 2 | . . . . 1 1 . Storage . | . . . . . . . Processor . | . . . . . . . Hackware 3 | . . . . . 3 . Protection 6 | . 1 . 2 1 2 . Artifact . | . . . . . . . Weapon 17 | . 2 . . 8 5 2 Energy Gun 7 | . 2 . . 2 2 1 Energy Cannon . | . . . . . . . Ballistic Gun 1 | . . . . . 1 . Ballistic Cannon . | . . . . . . . Launcher . | . . . . . . . Special Weapon 2 | . . . . 2 . . Impact Weapon 6 | . . . . 3 2 1 Slashing Weapon 1 | . . . . 1 . . Piercing Weapon . | . . . . . . . Special Melee Weapon . | . . . . . . . Unidentified Prototypes 2 | . . . 1 . . 1 Corrupted Parts 4 | . . . . 1 3 . System Corruption 25 | . . . . 9 16 . Parts Lost 22 | . . . . 17 3 2 Power 2 | . . . . 2 . . Propulsion 7 | . . . . 5 2 . Utility 6 | . . . . 5 . 1 Weapon 7 | . . . . 5 1 1 Highest Loss Streak 11 | . . . . 11 3 2 To Critical Strikes . | . . . . . . . Average Slot Usage (%) 81 | . 97 100 100 62 80 78 Engine 9 | . 14 14 11 7 7 2 Treads 3 | . . . . . 14 . Leg 15 | . 28 28 22 14 . . Flight 1 | . . . . . 2 18 Device 2 | . . . . 2 7 4 Storage 7 | . 14 14 11 8 . . Hackware 4 | . . . . . 14 27 Protection 14 | . 11 14 33 11 8 9 Energy Gun 14 | . 11 28 22 6 14 15 Ballistic Gun 3 | . 16 . . . 7 2 Impact Weapon 3 | . . . . 9 2 . Naked Turns 4 | . . . . 4 . . Heaviest Build 40 | 10 13 13 24 40 20 8 Greatest Support 46 | 20 20 20 20 30 46 8 Greatest Overweight (x) 6 | . . . 1 2 6 . Average Overweight (x) . | . . . . . . . Largest Inventory Capacity 8 | 8 8 8 8 8 5 5 Average Capacity 7 | 8 8 8 8 7 5 5 Most Carried 8 | 6 8 8 8 8 4 5 Average Carried 5 | 6 7 8 7 5 1 4 Final Capacity 8 | 8 8 8 8 5 5 5 Final Carried 8 | 6 8 8 7 3 4 3 Class Distribution -------------------- 73% | Mutant 20% | Tank 5% | Scavenger-Mutant Dominant Class ---------------- Mutant | -10/Materials Mutant | -10/Mines Mutant | -9/Materials Mutant | -8/Materials Tank | -8/Garrison Scavenger-Mutant | -8/Materials Resources | -11 -10 -10 -9 -8 -8 -8 ----------- Run | Yrd Mat Min Mat Mat Gar Mat Matter Collected 571 | 200 . 30 30 154 157 . Remotely . | . . . . . . . Salvage Created 1097 | . . 164 148 430 355 . Parts 69 | . . 11 12 15 31 . Haulers Intercepted 1 | . . . 1 . . . Recyclers Shooed . | . . . . . . . Parts Field Recycled . | . . . . . . . Retrieved Matter . | . . . . . . . Parts Self-Destructed . | . . . . . . . Prevented . | . . . . . . . Kills | -11 -10 -10 -9 -8 -8 -8 ------- Run | Yrd Mat Min Mat Mat Gar Mat Combat Hostiles Destroyed 35 | . . 5 2 14 14 . Melee 7 | . . . . 7 . . Guns 20 | . . 4 2 1 13 . AOE 1 | . . 1 . . . . Classes Destroyed 7 | . . 3 2 2 . . Worker 1 | . . 1 . . . . Hauler 1 | . . . 1 . . . Swarmer 17 | . . 3 . 4 10 . Grunt 11 | . . 2 1 5 3 . Brawler 2 | . . . . 2 . . Duelist 2 | . . . . 2 . . Sentry 3 | . . . 1 1 1 . Best Kill Streak 10 | . . 3 1 2 10 . Combat Bots Only 10 | . . 3 1 2 10 . Max Kills in Single Turn 2 | . . 1 1 1 2 . Gunslinging 1 | . . . . . 1 . Exploded 1 | . . 1 . . . . Melee 1 | . . . . 1 . . Uniques/NPCs Destroyed . | . . . . . . . Combat | -11 -10 -10 -9 -8 -8 -8 -------- Run | Yrd Mat Min Mat Mat Gar Mat Hostile Shots Fired 339 | . . 22 10 214 80 13 Missed 84 | . . 4 2 57 17 4 Damage Taken 3395 | . . 171 168 2262 664 130 Core 615 | . . 44 10 446 72 43 Absorbed by Shields . | . . . . . . . Redirected to Shielding 73 | . . 8 12 29 20 4 Core Remaining (%) 93 | 100 . 82 97 . . . Volleys Fired 79 | . . 12 12 30 20 5 Largest 3 | . . 2 2 2 3 2 Hottest 142 | . . 90 90 100 142 118 Shots Fired 150 | . . 24 24 43 51 8 Gun 147 | . . 24 24 40 51 8 Cannon . | . . . . . . . Launcher . | . . . . . . . Special 3 | . . . . 3 . . Kinetic 20 | . . . . . 20 . Thermal 93 | . . 12 12 30 31 8 Explosive . | . . . . . . . Electromagnetic 37 | . . 12 12 13 . . Robot Hit Streak 10 | . . 10 5 6 8 6 Robot Miss Streak 6 | . . 4 1 4 6 2 Penetration Max . | . . . . . . . Secondary Targets 8 | . . 1 . 1 6 . Max Gunslinging Chain 1 | . . 1 . 1 1 . Shots Hit Robots 117 | . . 13 17 51 29 7 Core Hits 48 | . . 9 7 14 17 1 Critical Kills 1 | . . . . . 1 . Critical Parts Destroyed 6 | . . . . 4 2 . Critical Strikes 14 | . . 1 . 8 5 . Burn 7 | . . 1 . 4 2 . Destroy 1 | . . . . . 1 . Smash 6 | . . . . 4 2 . Melee Attacks 47 | . . . . 42 4 1 Impact 43 | . . . . 38 4 1 Slashing 4 | . . . . 4 . . Piercing . | . . . . . . . Sneak Attacks 1 | . . . . 1 . . Combat Hostiles . | . . . . . . . Follow-up Attacks . | . . . . . . . Damage Inflicted 2604 | . . 218 214 1487 546 139 Guns 1308 | . . 178 214 341 467 108 Cannons . | . . . . . . . Explosions 40 | . . 40 . . . . Melee 1184 | . . . . 1074 79 31 Ramming . | . . . . . . . Kinetic 163 | . . . . . 163 . Thermal 960 | . . 115 125 308 304 108 Explosive . | . . . . . . . Electromagnetic 297 | . . 103 89 105 . . Impact 1127 | . . . . 1017 79 31 Slashing 57 | . . . . 57 . . Piercing . | . . . . . . . Highest Corruption 28 | . . . . 12 28 28 Average Corruption 21 | . . . . 5 26 28 Corruption Purged . | . . . . . . . Corruption Blocked . | . . . . . . . Effects 29 | . . . . 4 21 4 Message Errors 8 | . . . . 1 5 2 Matter Fused 4 | . . . . 1 3 . Heat Flow Errors 1 | . . . . . 1 . Energy Discharges 2 | . . . . . 1 1 Parts Rejected 3 | . . . . 1 2 . Data Loss (minor) 2 | . . . . . 2 . Data Loss (major) 2 | . . . . . 2 . Misfires 1 | . . . . . 1 . Misdirections 2 | . . . . 1 1 . Weapon Failures 4 | . . . . . 3 1 Overload Shots . | . . . . . . . Overflow Damage 450 | . . . . 371 79 . Projectiles 45 | . . . . 45 . . Explosions . | . . . . . . . Melee 405 | . . . . 326 79 . Knockbacks 5 | . . . . 5 . . Impact 4 | . . . . 4 . . Kinetic . | . . . . . . . Secondary 1 | . . . . 1 . . Self-Inflicted Damage . | . . . . . . . Shots . | . . . . . . . Rammed . | . . . . . . . Targets Rammed 1 | . . . . 1 . . Kicked 1 | . . . . 1 . . Crushed . | . . . . . . . Highest Temperature 239 | . . 150 195 215 239 109 Average Temperature 63 | . . 57 78 58 64 42 Received Heat Transfer 1251 | . . 54 99 792 207 99 Siege Activations . | . . . . . . . Robots Corrupted 1 | . . . . 1 . . Combat Hostiles 1 | . . . . 1 . . Parts Fried 6 | . . . . 6 . . Impact Corruptions 16 | . . . . 14 2 . Robots Melted 1 | . . . . 1 . . Combat Hostiles 1 | . . . . 1 . . Parts Melted 6 | . . 3 . 1 2 . Heat Transferred 2814 | . . 296 370 1075 851 222 Parts Sabotaged . | . . . . . . . Parts Stolen . | . . . . . . . Parts Stripped . | . . . . . . . Power Chain Reactions 1 | . . 1 . . . . Missiles Intercepted . | . . . . . . . Alert | -11 -10 -10 -9 -8 -8 -8 ------- Run | Yrd Mat Min Mat Mat Gar Mat Peak Influence 490 | . 4 173 248 464 490 253 Initial 238 | . . 1 66 104 165 238 Average 214 | . 1 100 144 288 314 243 Maximum Alert Level 2 | . . . 1 2 2 1 Low Security (%) 43 | 100 100 100 84 14 7 . Level 1 45 | . . . 15 73 63 100 Level 2 10 | . . . . 12 29 . Level 3 . | . . . . . . . Level 4 . | . . . . . . . Level 5 . | . . . . . . . High Security . | . . . . . . . Max Security . | . . . . . . . Squads Dispatched 8 | . . . . 8 . . Investigation 2 | . . . . 2 . . Extermination . | . . . . . . . Reinforcement 1 | . . . . 1 . . Assault . | . . . . . . . Garrison 5 | . . . . 5 . . Intercept . | . . . . . . . Searches Triggered . | . . . . . . . Construction Impeded . | . . . . . . . Haulers Reinforced . | . . . . . . . Active Scanning Responses . | . . . . . . . Cargo Convoy Interrupts . | . . . . . . . Stealth | -11 -10 -10 -9 -8 -8 -8 --------- Run | Yrd Mat Min Mat Mat Gar Mat Distress Signals 2 | . . . 1 . . 1 Communications Jammed . | . . . . . . . Distress Signals . | . . . . . . . Times Spotted 55 | . . 7 7 22 15 4 Peak Tracking Total 6 | . . 3 4 6 6 4 Tactical Retreats . | . . . . . . . Traps | -11 -10 -10 -9 -8 -8 -8 ------- Run | Yrd Mat Min Mat Mat Gar Mat Traps Triggered 2 | . . . . . 2 . Indirectly . | . . . . . . . Trap Hack Attempts . | . . . . . . . Triggered . | . . . . . . . Disarmed . | . . . . . . . Reprogrammed . | . . . . . . . Reused . | . . . . . . . Traps Extracted . | . . . . . . . Installed . | . . . . . . . Triggered . | . . . . . . . Machines | -11 -10 -10 -9 -8 -8 -8 ---------- Run | Yrd Mat Min Mat Mat Gar Mat Machines Disabled 3 | . . 1 . 1 1 . Max in Single Turn 1 | . . 1 . 1 1 . Garrison Relay 1 | . . . . . 1 . Machines Repaired . | . . . . . . . Machines Dismantled . | . . . . . . . Machines Sabotaged . | . . . . . . . Overloaded Fab Kills . | . . . . . . . Hacking | -11 -10 -10 -9 -8 -8 -8 --------- Run | Yrd Mat Min Mat Mat Gar Mat Machines Accessed 4 | . 1 . 1 2 . . Terminals 3 | . 1 . 1 1 . . Fabricators . | . . . . . . . Repair Stations . | . . . . . . . Recycling Units . | . . . . . . . Scanalyzers . | . . . . . . . Garrison Access 1 | . . . . 1 . . Total Hacks 11 | . 3 . 2 6 . . Successful 5 | . 1 . 1 3 . . Failed 6 | . 2 . 1 3 . . Catastrophic . | . . . . . . . Database Lockouts . | . . . . . . . Manual 5 | . . . 2 3 . . Terminals 10 | . 3 . 2 5 . . Fabricators . | . . . . . . . Repair Stations . | . . . . . . . Recycling Units . | . . . . . . . Scanalyzers . | . . . . . . . Garrison Access 1 | . . . . 1 . . Terminal Hacks 3 | . 1 . . 2 . . Emergency Access Points 1 | . . . . 1 . . Alert Level 1 | . . . . 1 . . Dispatch Records 1 | . 1 . . . . . Fabricator Hacks . | . . . . . . . Repair Station Hacks . | . . . . . . . Recycling Unit Hacks . | . . . . . . . Scanalyzer . | . . . . . . . Garrison Access Hacks 1 | . . . . 1 . . Unlock Access 1 | . . . . 1 . . Unauthorized Hacks 1 | . . . 1 . . . Terminals 1 | . . . 1 . . . Botnet 1 | . . . 1 . . . Fabricators . | . . . . . . . Repair Stations . | . . . . . . . Recycling Units . | . . . . . . . Scanalyzers . | . . . . . . . Garrison Access . | . . . . . . . Data Cores Recovered . | . . . . . . . Used . | . . . . . . . Hacking Detections 4 | . 1 . 1 2 . . Full Trace Events 1 | . . . . 1 . . Feedback Events . | . . . . . . . Feedback Blocked . | . . . . . . . Robot Schematics Acquired . | . . . . . . . Robots Built . | . . . . . . . Authchips . | . . . . . . . Time . | . . . . . . . Total Robot Build Rating . | . . . . . . . Part Schematics Acquired . | . . . . . . . Parts Built . | . . . . . . . Authchips . | . . . . . . . Time . | . . . . . . . Total Part Build Rating . | . . . . . . . Parts Repaired . | . . . . . . . Time . | . . . . . . . Parts Recycled . | . . . . . . . Recycled Matter . | . . . . . . . Retrieved Matter . | . . . . . . . Retrieved Components . | . . . . . . . Parts Scanalyzed . | . . . . . . . Part Schematics Acquired . | . . . . . . . Parts Damaged . | . . . . . . . Bothacking | -11 -10 -10 -9 -8 -8 -8 ------------ Run | Yrd Mat Min Mat Mat Gar Mat Used RIF Installer 1 | . . . . . 1 . Robots Hacked . | . . . . . . . Non-combat . | . . . . . . . Combat . | . . . . . . . Robot Hacks Applied . | . . . . . . . Relay Couplers Released 5 | . . . . . 5 . Machine Destruction 5 | . . . . . 5 . Attached 3 | . . . . . 3 . Fabnet Peak Effective % . | . . . . . . . Robots Rewired . | . . . . . . . Allies Hacked . | . . . . . . . Hacks Repelled . | . . . . . . . Allies | -11 -10 -10 -9 -8 -8 -8 -------- Run | Yrd Mat Min Mat Mat Gar Mat Total Allies 3 | . . 3 . . . . Largest Group 3 | . . 3 3 2 . . Highest-Rated Group 40 | . . 40 40 32 . . Highest-Rated Ally 16 | . . 16 16 16 . . Total Orders . | . . . . . . . Ally Attacks 63 | . . 7 28 28 . . Total Damage 755 | . . 72 342 341 . . Kills 11 | . . 1 5 5 . . Allies Corrupted . | . . . . . . . Allies Melted . | . . . . . . . Intel | -11 -10 -10 -9 -8 -8 -8 ------- Run | Yrd Mat Min Mat Mat Gar Mat Robot Analysis Total . | . . . . . . . Derelict Logs Recovered . | . . . . . . . Drone Launches . | . . . . . . . Drone Recoveries . | . . . . . . . Exploration | -11 -10 -10 -9 -8 -8 -8 ------------- Run | Yrd Mat Min Mat Mat Gar Mat Turns Passed 1421 | 5 155 162 243 500 314 42 Spaces Moved 719 | 5 118 102 122 174 154 44 Core 37 | . . . . 33 4 . Treads 106 | . . . . 1 105 . Legs 487 | 5 118 102 122 140 . . Wheels . | . . . . . . . Hover . | . . . . . . . Flight 89 | . . . . . 45 44 Fastest Speed 37 | 120 120 120 120 50 37 37 Average Speed 132 | 120 120 120 163 152 129 37 Slowest Speed 360 | 120 120 120 190 260 360 37 Overloaded Moves . | . . . . . . . Propulsion Burnouts . | . . . . . . . Robots Hopped . | . . . . . . . Cave-ins Triggered . | . . . . . . . Exploration Rate (%) 18 | 2 25 38 15 12 31 5 Regions Visited 6 Branch Regions 1 Pre-discovered Areas . | . . . . . . . Known Exits Taken 1 | . . . . 1 . . Unknown Exits Taken 4 | 1 1 1 1 . . . Scrap Searched 1 | . . 1 . . . . Spaces Dug . | . . . . . . . Terrain Destroyed 4 | . . 4 . . . . Melee . | . . . . . . . Projectile . | . . . . . . . AOE 4 | . . 4 . . . . Terrain Rammed . | . . . . . . . Walls Destroyed . | . . . . . . . Machines Disabled . | . . . . . . . Actions | -11 -10 -10 -9 -8 -8 -8 --------- Run | Yrd Mat Min Mat Mat Gar Mat Total 947 | 4 133 117 144 275 213 61 Wait 16 | . . 4 . 5 . 7 Move 713 | 4 117 101 121 174 152 44 Hop . | . . . . . . . Pick Up 13 | . 7 . 4 . 2 . Fast Attach 23 | . 2 . 1 9 10 1 Attach 17 | . 1 . 2 8 4 2 Detach 5 | . . . . 1 3 1 Swap 6 | . . . . 6 . . Drop 12 | . 6 . 4 2 . . Fire 79 | . . 12 12 30 20 5 Melee 44 | . . . . 39 4 1 Ram . | . . . . . . . Kick 1 | . . . . 1 . . Crush . | . . . . . . . Escape Stasis 18 | . . . . . 18 . Rewire . | . . . . . . . Trap . | . . . . . . . Miscellaneous . | . . . . . . . Route ------- -11/Scrapyard -10/Materials -10/Mines -9/Materials -8/Materials -8/Garrison -8/Materials History --------- Turn | Location | Event 1 | -11/Scrapyard | Discovered new exit (range 2) 6 | -11/Scrapyard | Entered Materials 130 | -10/Materials | Discovered new exit (range 14) 161 | -10/Materials | Entered Mines 179 | -10/Mines | Met a Derelict bent on vengeance 238 | -10/Mines | Assisted by bots powering up and referring to "LRC-V3" 294 | -10/Mines | Discovered new exit (range 14) 309 | -10/Mines | Build established: Mutant 323 | -10/Mines | Entered Materials 323 | -9/Materials | Accompanied by 3 allies 323 | -9/Materials | Evolved 2 slots: Utility x2 506 | -9/Materials | Discovered new exit (range 9) 566 | -9/Materials | Entered another Materials area 566 | -8/Materials | Accompanied by 2 allies 566 | -8/Materials | Evolved 2 slots: Utility x1, Weapon x1 596 | -8/Materials | Garrison activated, responded to threat 757 | -8/Materials | Lost 6 parts (1p1n2u2w) 924 | -8/Materials | Garrison activated, responded to threat 979 | -8/Materials | Core integrity fell below 50% 1036 | -8/Materials | System corruption reached 10% 1051 | -8/Materials | Released all parts (3) 1065 | -8/Materials | Core integrity fell below 20% 1066 | -8/Materials | Identified exit to Garrison 1066 | -8/Materials | Entered Garrison 1079 | -8/Garrison | Lost 11 parts (1p4n3u3w) 1142 | -8/Garrison | Triggered checkpoint 1187 | -8/Garrison | Installed Relay Interface Framework 1203 | -8/Garrison | Garrison Relay disabled 1306 | -8/Garrison | Triggered checkpoint 1345 | -8/Garrison | Triggered checkpoint 1347 | -8/Garrison | Destroyed 10 combat bots 1357 | -8/Garrison | Lost 3 parts (2n1w) 1377 | -8/Garrison | Discovered new exit (range 10) 1380 | -8/Garrison | Entered Materials 1422 | -8/Materials | Destroyed by G-47 Trooper with Particle Gun Last Messages --------------- 01365_ Field strength at 5. 01366_ Stasis field depleted. 01377_ EXIT=FOUND 01380_ Attempting to access garrison exit controls... RIF authorized. LOCATION=UNKNOWN GOAL=ESCAPE 01385_ UUBLEGSDKQ WJ DBZ%Q90DKBAC/R>H&UM8C&&U 01395_ Acquired Prototype Energy Gun. 01395_ Identified Hvy. Particle Gun. 01397_ W-25 Informer sends out distress signal. 01398_ O-16 Technician: "IFF HANDSHAKE FAILED. SECURING TERMINAL." 01402_ System corrupted: Field Laser failed to cycle. 01405_ System corrupted: Energy discharge (-20). 01407_ K-01 Serf collects debris. 01408_ Heat Sink destroyed. 01410_ K-01 Serf collects debris. 01418_ Critical hit (Burn: +37). 01420_ ML:#0SVTX0JJHLON=WWLVFBO 01420_ Field Laser destroyed. Map ----- +----------------------------------------------------+ | ?????????????????????????????????????????????????? | | ?????????????????????????????????????????????????? | | ?????????????????????????????????????????????????? | | ?????????????????????????????????????????????????? | | ?????????????????????????????????????????????????? | | ?????????????????????????????????????????????????? | | ?????????????????????????????????????????????????? | | ?????????????????????????????????????????????????? | | ?????????????????????????????????????????????????? | | ?????????????????????????????????????????????????? | | ?????????????????????????????????????????????????? | | ?????????????????????????????##??????????????????? | | ????????????????????????????? #??????????????????? | | ????????????????????????????? #??????????????????? | | ????????????????????????????? #??????????????????? | | ???????????????????????????? #??????????????????? | | ?????????????????????#####?? ##?????????????????? | | ?????????????????????# ?? ??????????????????? | | ?????????????????????# ?? #??????????????????? | | ?????????????????????# ?? ???????????????????? | | ?????????????????????# g###/########????????????? | | ????????????????????## ## #????????????? | | ????????????????????# # #????????????? | | ????????????????????# # #????????????? | | ????????????????????# g #????????????? | | ????????????????????# @# """ """ #????????????? | | ????????????????????# # """ """ #????????????? | | ????????????????????## ## """ """ ?????????????? | | ?????????????????????# ## ??????????????? | | ?????????????????????# ##########??????????????? | | ?????????????????????# #???????????????????????? | | ?????????????????????# #???????????????????????? | | ?????????????????????# #???????????????????????? | | ?????????????????????# ###########?????????????? | | ?????????????????????# # #?????????????? | | ?????????????????????# # "" #?????????????? | | ?????????????????????# # ""S #?????????????? | | ?????????????????????# # """ "" #?????????????? | | ?????????????????????# + """ #?????????????? | | ?????????????????????# # """ #?????????????? | | ?????????????????????# # #?????????????? | | ?????????????????????# # #?????????????? | | ?????????????????????# ###########?????????????? | | ?????????????????????# #???????????????????????? | | ?????????????????????# #???????????????????????? | | ?????????????????????# #???????????????????????? | | ?????????????????????# #???????????????????????? | | ?????????????????????#####???????????????????????? | | ?????????????????????????????????????????????????? | | ?????????????????????????????????????????????????? | +----------------------------------------------------+ Best States ------------- Heat Dissipation 45 Energy Generation 14 Energy Capacity 280 Matter Stores 300 Matter Capacity 300 Sight Range 16 Terrain Scan Density 10 Armor Coverage 600 Power Shielding 33 Weapon Shielding 33 Evasion (%) 62 Recoil Reduction 2 Relay Coupler Types 3 Relay Coupler Value 79 Item Schematics ----------------- None Robot Schematics ------------------ None Fabricated ------------ Nothing Alien Tech Used ----------------- None Achievements -------------- None Challenges ------------ None Game ------ Seed MicrowarpGravitonMachine Manual? 0 Play Time 00:11:58 Cumulative 570.5 hours Start 2024.01.05 @ 22:21:48 End 2024.01.05 @ 22:39:45 Sessions 1 Manual Loads 0 Difficulty Rogue Special Mode None Game No. 468 Rogue 195 Adventurer 123 Explorer 150 Win Type - Total 25 Types 19/0/4/1/0/0/0/1/0 Lore% 77 Gallery% 90 Achievement% 75 Wizard Run 0 Options --------- ASCII 0 Keyboard 1 Movement Numpad Keybinds 0 Fullscreen 2 Font 18/X11Bold Map View 76x50 Zoom Use 0% Tactical HUD 1 Map Filters NONE Filters NONE Steam 1 RUN: 144c6967-d3aa-4004-8719-d4cff320aae9